fUSD/lending_fUSD_20240704
["ID","MTS","AMOUNT","RATE_DAILY","PERIOD"]
[331083124,1720069847603,-500.0,0.00021917,4]
[331083126,1720069847613,-500.0,0.00021917,4]
[331083128,1720069847623,-500.0,0.00021917,4]
[331083130,1720069847632,-500.0,0.00021917,4]
[331083132,1720069847641,-577.21461639,0.00021917,4]
[331083134,1720069847651,-500.0,0.00021917,4]
[331083136,1720069847660,-500.0,0.00021917,4]
[331083139,1720069847670,-500.0,0.00021917,4]
[331083141,1720069847679,-500.0,0.00021917,4]
[331083143,1720069847689,-500.0,0.00021917,4]
[331083145,1720069847698,-589.79751903,0.00021917,4]
[331083147,1720069847708,-500.0,0.00021917,4]
[331083149,1720069847719,-626.81669094,0.00021917,4]
[331083151,1720069847730,-500.0,0.00021917,4]
[331083153,1720069847739,-500.0,0.00021917,4]
[331083155,1720069847749,-500.0,0.00021917,4]
[331083157,1720069847759,-500.0,0.00021917,4]
[331083159,1720069847768,-500.0,0.00021917,4]
[331083161,1720069847778,-500.0,0.00021917,4]
[331083163,1720069847787,-500.0,0.00021917,4]
[331083165,1720069847798,-500.0,0.00021917,4]
[331083167,1720069847808,-500.0,0.00021917,4]
[331083169,1720069847817,-671.1,0.00021917,4]
[331083171,1720069847828,-671.1,0.00021917,4]
[331083173,1720069847837,-671.1,0.00021917,4]
[331083175,1720069847846,-450.0,0.00021917,4]
[331083177,1720069847857,-671.1,0.00021917,4]
[331083179,1720069847868,-671.1,0.00021917,4]
[331083181,1720069847877,-671.1,0.00021917,4]
[331083183,1720069847887,-671.1,0.00021917,4]
[331083185,1720069847897,-671.1,0.00021917,4]
[331083188,1720069847907,-671.1,0.00021917,4]
[331083190,1720069847916,-671.1,0.00021917,4]
[331083192,1720069847926,-671.1,0.00021917,4]
[331083194,1720069847935,-500.0,0.00021917,4]
[331083196,1720069847945,-500.0,0.00021917,4]
[331083198,1720069847955,-418.2,0.00021917,4]
[331083200,1720069847964,-910.14,0.00021917,4]
[331083202,1720069847974,-910.14,0.00021917,4]
[331083204,1720069847983,-910.14,0.00021917,4]
[331083206,1720069847993,-1053.65,0.00021917,4]
[331083208,1720069848003,-910.14,0.00021917,4]
[331083210,1720069848014,-910.14,0.00021917,4]
[331083212,1720069848024,-1053.65,0.00021917,4]
[331083214,1720069848034,-910.14,0.00021917,4]
[331083216,1720069848044,-1053.65,0.00021917,4]
[331083219,1720069848071,-665.81,0.00021917,4]
[331083221,1720069848081,-910.14,0.00021917,4]
[331083223,1720069848091,-1053.65,0.00021917,4]
[331083225,1720069848101,-665.81,0.00021917,4]
[331083227,1720069848110,-910.14,0.00021917,4]
[331083229,1720069848120,-1053.65,0.00021917,4]
[331083231,1720069848130,-910.14,0.00021917,4]
[331083233,1720069848139,-665.81,0.00021917,4]
[331083235,1720069848149,-1053.65,0.00021917,4]
[331083237,1720069848158,-665.81,0.00021917,4]
[331083239,1720069848168,-1053.65,0.00021917,4]
[331083241,1720069848178,-910.14,0.00021917,4]
[331083243,1720069848187,-665.81,0.00021917,4]
[331083245,1720069848197,-1053.65,0.00021917,4]
[331083247,1720069848206,-910.14,0.00021917,4]
[331083250,1720069848216,-500.0,0.00021917,4]
[331083252,1720069848226,-665.81,0.00021917,4]
[331083254,1720069848236,-1053.65,0.00021917,4]
[331083256,1720069848247,-2546.77,0.00021917,4]
[331083258,1720069848258,-500.0,0.00021917,4]
[331083260,1720069848267,-665.81,0.00021917,4]
[331083262,1720069848277,-2546.77,0.00021917,4]
[331083264,1720069848286,-500.0,0.00021917,4]
[331083266,1720069848296,-665.81,0.00021917,4]
[331083268,1720069848305,-2546.77,0.00021917,4]
[331083270,1720069848315,-590.71,0.00021917,4]
[331083272,1720069848325,-500.0,0.00021917,4]
[331083275,1720069848335,-665.81,0.00021917,4]
[331083277,1720069848344,-2546.77,0.00021917,4]
[331083279,1720069848354,-590.71,0.00021917,4]
[331083281,1720069848364,-500.0,0.00021917,4]
[331083283,1720069848374,-2546.77,0.00021917,4]
[331083285,1720069848384,-590.71,0.00021917,4]
[331083287,1720069848393,-155.17353629,0.00021917,4]
[331083289,1720069848403,-2546.77,0.00021917,4]
[331083291,1720069848413,-590.71,0.00021917,4]
[331083293,1720069848423,-2546.77,0.00021917,4]
[331083295,1720069848433,-590.71,0.00021917,4]
[331083297,1720069848442,-2546.77,0.00021917,4]
[331083300,1720069848452,-590.71,0.00021917,4]
[331083302,1720069848462,-590.71,0.00021917,4]
[331083304,1720069848472,-2546.77,0.00021917,4]
[331083306,1720069848482,-590.71,0.00021917,4]
[331083308,1720069848492,-590.71,0.00021917,4]
[331083310,1720069848502,-590.71,0.00021917,4]
[331083312,1720069848511,-590.71,0.00021917,4]
[331083314,1720069848521,-500.0,0.00021917,4]
[331083316,1720069848531,-500.0,0.00021917,4]
[331083318,1720069848540,-233.87600714,0.00021917,4]
[331083320,1720069848550,-500.0,0.00021917,4]
[331083322,1720069848559,-224.43962037,0.00021917,4]
[331083324,1720069848569,-1313.13,0.00021917,4]
[331083326,1720069848578,-500.0,0.00021917,4]
[331083328,1720069848588,-1313.13,0.00021917,4]
[331083330,1720069848597,-1313.13,0.00021917,4]
[331083332,1720069848607,-500.0,0.00021917,4]
[331083334,1720069848616,-1313.13,0.00021917,4]
[331083336,1720069848626,-1313.13,0.00021917,4]
[331083338,1720069848636,-1313.13,0.00021917,4]
[331083340,1720069848646,-1313.13,0.00021917,4]
[331083342,1720069848656,-500.0,0.00021917,4]
[331083344,1720069848665,-1313.13,0.00021917,4]
[331083347,1720069848675,-1313.13,0.00021917,4]
[331083349,1720069848684,-1313.13,0.00021917,4]
[331083351,1720069848694,-1313.13,0.00021917,4]
[331083353,1720069848703,-500.0,0.00021917,4]
[331083355,1720069848713,-500.0,0.00021917,4]
[331083357,1720069848726,-500.0,0.00021917,4]
[331083359,1720069848736,-151.0,0.00021917,2]
[331083361,1720069848745,-151.0,0.00021917,2]
[331083363,1720069848755,-151.0,0.00021917,2]
[331083365,1720069848766,-500.0,0.00021917,4]
[331083367,1720069848775,-500.0,0.00021917,4]
[331083369,1720069848784,-500.0,0.00021917,4]
[331083371,1720069848795,-500.0,0.00021917,2]
[331083373,1720069848805,-414.94120881,0.00021917,2]
[331083376,1720069848814,-500.0,0.00021917,4]
[331083378,1720069848824,-500.0,0.00021917,4]
[331083380,1720069848833,-500.0,0.00021917,4]
[331083382,1720069848843,-500.0,0.00021917,2]
[331083384,1720069848853,-500.0,0.00021917,2]
[331083386,1720069848863,-500.0,0.00021917,2]
[331083388,1720069848873,-500.0,0.00021917,2]
[331083390,1720069848883,-500.0,0.00021917,4]
[331083392,1720069848893,-285.05902977,0.00021917,2]
[331083394,1720069848903,-500.0,0.00021917,4]
[331083396,1720069848912,-500.0,0.00021917,4]
[331083399,1720069848922,-500.0,0.00021917,4]
[331083401,1720069848931,-500.0,0.00021917,4]
[331083403,1720069848941,-500.0,0.00021917,4]
[331083405,1720069848951,-500.0,0.00021917,4]
[331083407,1720069848961,-500.0,0.00021917,4]
[331083430,1720069849164,-500.0,0.00021917,4]
[331083433,1720069849180,-500.0,0.00021917,4]
[331083435,1720069849189,-500.0,0.00021917,4]
[331083437,1720069849198,-500.0,0.00021917,2]
[331083439,1720069849207,-500.0,0.00021917,4]
[331083440,1720069849216,-352.61,0.00021918,2]
[331083441,1720069849225,-151.13,0.00021918,2]
[331083442,1720069849234,-150.0,0.00021918,2]
[331083443,1720069849244,-1282.32,0.00021918,2]
[331083444,1720069849253,-410.297436,0.00021918,2]
[331083445,1720069849263,-410.297436,0.00021918,2]
[331083446,1720069849272,-1020.55911,0.00021918,2]
[331083447,1720069849281,-1020.55911,0.00021918,2]
[331083448,1720069849290,-1020.55911,0.00021918,2]
[331083450,1720069849299,-1020.55911,0.00021918,2]
[331083452,1720069849309,-1020.55911,0.00021918,2]
[331083454,1720069849318,-1020.55911,0.00021918,2]
[331083456,1720069849328,-1020.55911,0.00021918,2]
[331083458,1720069849337,-1020.55911,0.00021918,2]
[331083460,1720069849346,-155.3255686,0.00021918,2]
[331083462,1720069849356,-1280.37,0.00021937,4]
[331083464,1720069849366,-671.1,0.00021937,4]
[331083466,1720069849375,-910.14,0.00021937,4]
[331083468,1720069849385,-1313.13,0.00021937,4]
[331083470,1720069849394,-500.0,0.00021938,4]
[331083472,1720069849404,-500.0,0.00021938,4]
[331083474,1720069849413,-410.297436,0.00021938,7]
[331083476,1720069849422,-410.297436,0.00021938,7]
[331083478,1720069849431,-500.0,0.00021938,4]
[331083480,1720069849441,-500.0,0.00021938,4]
[331083483,1720069849452,-671.86,0.00021938,4]
[331083485,1720069849461,-500.0,0.00021938,4]
[331083487,1720069849470,-684.0,0.00021938,4]
[331083489,1720069849479,-767.56,0.00021938,4]
[331083491,1720069849488,-2469.51,0.00021938,4]
[331083493,1720069849497,-640.66,0.00021938,4]
[331083495,1720069849506,-194.83233859,0.00021938,4]
[331083497,1720069849515,-500.0,0.00021938,4]
[331083499,1720069849524,-1053.65,0.00021938,4]
[331083501,1720069849534,-665.81,0.00021938,4]
[331083503,1720069849543,-2546.77,0.00021938,4]
[331083505,1720069849552,-590.71,0.00021938,4]
[331083507,1720069849561,-87123.6789223,0.00021939,2]
[331083509,1720069849571,-3678.2779616,0.00021939,2]
[331083511,1720069849580,-1020.55911,0.00021939,7]
[331083513,1720069849589,-1020.55911,0.00021939,7]
[331083515,1720069849598,-151.0,0.00021939,7]
[331083517,1720069849609,-400.0,0.0002197,2]
[331083518,1720069849618,-716.7434968,0.00021981,2]
[331083521,1720069849631,-716.7434968,0.00021981,2]
[331083523,1720069849640,-325.8434947,0.00021983,4]
[331083525,1720069849650,-500.0,0.00021983,4]
[331083527,1720069849659,-381.67178115,0.00021993,2]
[331083529,1720069849668,-150.0,0.00021999,2]
[331083531,1720069849678,-491.0,0.00022,4]
[331083533,1720069849687,-793.14485048,0.00022,2]
[331083535,1720069849696,-159.64043736,0.00022,2]
[331083537,1720069849705,-241.15779943,0.00022,4]
[331083539,1720069849714,-2000.0,0.00022,2]
[331083541,1720069849728,-11325.9939669,0.00022003,2]
[331083543,1720069849737,-154.25409952,0.00022017,2]
[331083545,1720069849747,-150.0,0.00022043,7]
[331083547,1720069849756,-910.14,0.00022043,4]
[331083549,1720069849767,-1313.13,0.00022043,4]
[331083551,1720069849776,-268008.3744956,0.00022044,7]
[331083559,1720069849841,-12469.48785308,0.00022044,7]
[331083561,1720069849851,-1020.55911,0.00022044,7]
[331083563,1720069849863,-1020.55911,0.00022044,7]
[331083565,1720069849873,-151.0,0.00022044,7]
[331083567,1720069849882,-1854.2112108,0.00022044,2]
[331083569,1720069849891,-400.0,0.0002207,2]
[331083571,1720069849901,-500.0,0.00022071,4]
[331083573,1720069849910,-152.46278182,0.0002208,2]
[331083575,1720069849919,-4323.64279931,0.00022083,2]
[331083577,1720069849929,-500.0,0.00022084,4]
[331083579,1720069849939,-500.0,0.00022089,4]
[331083581,1720069849948,-6047.96692396,0.0002209,2]
[331083583,1720069849958,-204.0,0.0002209,2]
[331083585,1720069849967,-204.0,0.0002209,2]
[331083587,1720069849976,-204.0,0.0002209,2]
[331083589,1720069849985,-204.0,0.0002209,2]
[331083591,1720069849994,-204.0,0.0002209,2]
[331083593,1720069850003,-221.0,0.0002209,2]
[331083595,1720069850012,-204.0,0.0002209,2]
[331083597,1720069850022,-204.0,0.0002209,2]
[331083599,1720069850031,-204.0,0.0002209,2]
[331083601,1720069850041,-204.0,0.0002209,2]
[331083603,1720069850050,-204.0,0.0002209,2]
[331083605,1720069850060,-204.0,0.0002209,2]
[331083607,1720069850070,-204.0,0.0002209,2]
[331083609,1720069850079,-204.0,0.0002209,2]
[331083611,1720069850088,-204.0,0.0002209,2]
[331083613,1720069850097,-222.0,0.0002209,2]
[331083615,1720069850107,-222.0,0.0002209,2]
[331083617,1720069850117,-222.0,0.0002209,2]
[331083619,1720069850126,-222.0,0.0002209,2]
[331083621,1720069850135,-296.0,0.0002209,2]
[331083623,1720069850144,-296.0,0.0002209,2]
[331083625,1720069850153,-296.0,0.0002209,2]
[331083627,1720069850162,-296.0,0.0002209,2]
[331083629,1720069850171,-296.0,0.0002209,2]
[331083631,1720069850180,-296.0,0.0002209,2]
[331083633,1720069850189,-296.0,0.0002209,2]
[331083635,1720069850198,-296.0,0.0002209,2]
[331083637,1720069850208,-296.0,0.0002209,2]
[331083639,1720069850217,-296.0,0.0002209,2]
[331083641,1720069850226,-296.0,0.0002209,2]
[331083643,1720069850235,-296.0,0.0002209,2]
[331083645,1720069850244,-296.0,0.0002209,2]
[331083647,1720069850253,-296.0,0.0002209,2]
[331083649,1720069850262,-296.0,0.0002209,2]
[331083651,1720069850271,-151.0,0.0002209,2]
[331083653,1720069850280,-410.297436,0.0002209,7]
[331083655,1720069850289,-410.297436,0.0002209,7]
[331083657,1720069850299,-500.0,0.00022092,4]
[331083659,1720069850308,-500.0,0.00022092,4]
[331083661,1720069850317,-500.0,0.00022092,4]
[331083663,1720069850327,-500.0,0.00022092,4]
[331083665,1720069850336,-263.15,0.00022092,4]
[331083667,1720069850346,-500.0,0.00022092,4]
[331083670,1720069850356,-500.0,0.00022092,4]
[331083672,1720069850366,-684.0,0.00022092,4]
[331083674,1720069850375,-767.56,0.00022092,4]
[331083676,1720069850385,-640.66,0.00022092,4]
[331083678,1720069850394,-590.71,0.00022092,4]
[331083680,1720069850403,-500.0,0.00022093,4]
[331083682,1720069850413,-557.49293813,0.00022093,4]
[331083684,1720069850422,-500.0,0.00022093,4]
[331083686,1720069850431,-500.0,0.00022093,4]
[331083688,1720069850440,-612.29127989,0.00022093,4]
[331083690,1720069850449,-500.0,0.00022093,4]
[331083692,1720069850458,-684.0,0.00022093,4]
[331083694,1720069850468,-1280.37,0.00022093,4]
[331083696,1720069850477,-767.56,0.00022093,4]
[331083698,1720069850486,-640.66,0.00022093,4]
[331083700,1720069850496,-671.1,0.00022093,4]
[331083702,1720069850505,-910.14,0.00022093,4]
[331083704,1720069850514,-590.71,0.00022093,4]
[331083706,1720069850524,-1313.13,0.00022093,4]
[331083708,1720069850533,-500.0,0.00022094,4]
[331083710,1720069850543,-500.0,0.00022094,4]
[331083712,1720069850552,-500.0,0.00022094,4]
[331083714,1720069850562,-500.0,0.00022094,4]
[331083716,1720069850571,-500.0,0.00022094,4]
[331083718,1720069850581,-500.0,0.00022094,4]
[331083720,1720069850590,-500.0,0.00022094,4]
[331083722,1720069850599,-500.0,0.00022094,4]
[331083724,1720069850609,-500.0,0.00022094,4]
[331083726,1720069850619,-500.0,0.00022094,4]
[331083728,1720069850628,-500.0,0.00022094,4]
[331083730,1720069850637,-500.0,0.00022094,4]
[331083732,1720069850647,-500.0,0.00022094,4]
[331083734,1720069850656,-500.0,0.00022094,4]
[331083736,1720069850666,-500.0,0.00022094,4]
[331083738,1720069850676,-500.0,0.00022094,4]
[331083741,1720069850685,-500.0,0.00022094,4]
[331083742,1720069850694,-500.0,0.00022094,4]
[331083745,1720069850703,-500.0,0.00022094,4]
[331083747,1720069850713,-500.0,0.00022094,4]
[331083749,1720069850725,-500.0,0.00022094,4]
[331083750,1720069850735,-500.0,0.00022094,4]
[331083752,1720069850743,-320.16062341,0.00022094,4]
[331083754,1720069850753,-500.0,0.00022094,4]
[331083756,1720069850763,-500.0,0.00022094,4]
[331083759,1720069850774,-500.0,0.00022094,4]
[331083761,1720069850783,-500.0,0.00022094,4]
[331083763,1720069850793,-500.0,0.00022094,4]
[331083765,1720069850803,-500.0,0.00022094,4]
[331083767,1720069850813,-671.86,0.00022094,4]
[331083768,1720069850822,-671.86,0.00022094,4]
[331083771,1720069850832,-671.86,0.00022094,4]
[331083773,1720069850841,-671.86,0.00022094,4]
[331083775,1720069850853,-671.86,0.00022094,4]
[331083777,1720069850863,-500.0,0.00022094,4]
[331083779,1720069850873,-671.86,0.00022094,4]
[331083781,1720069850882,-500.0,0.00022094,4]
[331083782,1720069850893,-500.0,0.00022094,4]
[331083784,1720069850903,-197.70877457,0.00022094,4]
[331083786,1720069850913,-684.0,0.00022094,4]
[331083789,1720069850924,-684.0,0.00022094,4]
[331083791,1720069850934,-684.0,0.00022094,4]
[331083792,1720069850944,-684.0,0.00022094,4]
[331083794,1720069850954,-1280.37,0.00022094,4]
[331083796,1720069850965,-1280.37,0.00022094,4]
[331083799,1720069850975,-1280.37,0.00022094,4]
[331083801,1720069850985,-1280.37,0.00022094,4]
[331083803,1720069850995,-767.56,0.00022094,4]
[331083805,1720069851005,-767.56,0.00022094,4]
[331083807,1720069851017,-767.56,0.00022094,4]
[331083809,1720069851026,-767.56,0.00022094,4]
[331083811,1720069851036,-2469.51,0.00022094,4]
[331083813,1720069851045,-2469.51,0.00022094,4]
[331083815,1720069851054,-2469.51,0.00022094,4]
[331083817,1720069851064,-2469.51,0.00022094,4]
[331083819,1720069851074,-2469.51,0.00022094,4]
[331083821,1720069851084,-2469.51,0.00022094,4]
[331083823,1720069851093,-640.66,0.00022094,4]
[331083824,1720069851107,-640.66,0.00022094,4]
[331083825,1720069851116,-640.66,0.00022094,4]
[331083826,1720069851126,-640.66,0.00022094,4]
[331083827,1720069851135,-500.0,0.00022094,4]
[331083828,1720069851144,-604.87658104,0.00022094,4]
[331083829,1720069851154,-671.1,0.00022094,4]
[331083830,1720069851164,-671.1,0.00022094,4]
[331083831,1720069851175,-150.0,0.00022094,7]
[331083833,1720069851185,-671.1,0.00022094,4]
[331083835,1720069851194,-671.1,0.00022094,4]
[331083836,1720069851204,-1053.65,0.00022094,4]
[331083839,1720069851214,-1053.65,0.00022094,4]
[331083840,1720069851223,-910.14,0.00022094,4]
[331083843,1720069851233,-1053.65,0.00022094,4]
[331083844,1720069851243,-910.14,0.00022094,4]
[331083847,1720069851253,-1053.65,0.00022094,4]
[331083848,1720069851262,-665.81,0.00022094,4]
[331083851,1720069851272,-910.14,0.00022094,4]
[331083852,1720069851281,-1053.65,0.00022094,4]
[331083854,1720069851291,-665.81,0.00022094,4]
[331083857,1720069851301,-910.14,0.00022094,4]
[331083858,1720069851311,-1053.65,0.00022094,4]
[331083861,1720069851321,-665.81,0.00022094,4]
[331083862,1720069851330,-665.81,0.00022094,4]
[331083864,1720069851339,-665.81,0.00022094,4]
[331083867,1720069851349,-665.81,0.00022094,4]
[331083869,1720069851361,-2546.77,0.00022094,4]
[331083871,1720069851371,-2546.77,0.00022094,4]
[331083873,1720069851381,-2546.77,0.00022094,4]
[331083875,1720069851391,-2546.77,0.00022094,4]
[331083877,1720069851400,-2546.77,0.00022094,4]
[331083879,1720069851410,-2546.77,0.00022094,4]
[331083881,1720069851419,-195.39999778,0.00022094,4]
[331083883,1720069851429,-590.71,0.00022094,4]
[331083885,1720069851439,-590.71,0.00022094,4]
[331083887,1720069851448,-590.71,0.00022094,4]
[331083889,1720069851458,-590.71,0.00022094,4]
[331083891,1720069851467,-1313.13,0.00022094,4]
[331083893,1720069851478,-1313.13,0.00022094,4]
[331083895,1720069851487,-1313.13,0.00022094,4]
[331083897,1720069851497,-1313.13,0.00022094,4]
[331083899,1720069851506,-500.0,0.00022094,4]
[331083901,1720069851516,-500.0,0.00022094,4]
[331083903,1720069851525,-500.0,0.00022094,4]
[331083905,1720069851535,-407020.61248635,0.00022095,2]
[331084020,1720069852629,-641.77372059,0.00013574,2]
[331084022,1720069852642,-500.0,0.00021917,4]
[331084024,1720069852654,-500.0,0.00021917,2]
[331084026,1720069852663,-500.0,0.00021917,2]
[331084028,1720069852673,-500.0,0.00021917,2]
[331084030,1720069852683,-500.0,0.00021917,2]
[331084032,1720069852694,-500.0,0.00021917,2]
[331084035,1720069852704,-385.72246405,0.00021917,2]
[331084037,1720069852715,-500.0,0.00021937,4]
[331084039,1720069852730,-2001.00346023,0.00021951,2]
[331084041,1720069852743,-1639.6528782,0.00021951,2]
[331084283,1720070017789,3071.06619753,0.00011199,2]
[331084284,1720070031518,166.66250129,0.00011199,2]
[331084285,1720070040496,641.77372059,0.00011199,2]
[331084286,1720070071186,641.77372059,0.00011199,2]
[331084287,1720070081114,1133.92751376,0.00011199,2]
[331084288,1720070100990,173.33,0.00024775,120]
[331084289,1720070118249,1903.03082168,0.00011199,2]
[331084290,1720070149657,2201.0498595,0.00011199,2]
[331084291,1720070162726,1000.0,0.00014999,30]
[331084292,1720070163024,1000.0,0.00014999,30]
[331084293,1720070163319,1000.0,0.00014999,30]
[331084294,1720070163593,1000.0,0.00014999,30]
[331084295,1720070163963,1000.0,0.00014999,30]
[331084296,1720070164142,1000.0,0.00014999,30]
[331084297,1720070164593,599.6738569,0.00015249,30]
[331084298,1720070179795,30296.60109744,0.00011199,2]
[331084299,1720070193503,641.77372059,0.00011199,2]
[331084300,1720070229310,690.47819463,0.00011199,2]
[331084301,1720070251166,166.11576568,0.00011199,2]
[331084302,1720070304512,641.77372059,0.00011199,2]
[331084303,1720070317545,424.32731547,0.00011199,2]
[331084304,1720070318583,155.39140516,0.00011199,2]
[331084305,1720070318791,30296.60109744,0.00011199,2]
[331084306,1720070334507,641.77372059,0.00011199,2]
[331084307,1720070334913,30296.60109744,0.00011199,2]
[331084308,1720070463515,641.77372059,0.00011199,2]
[331084309,1720070471196,641.77372059,0.00011199,2]
[331084310,1720070518862,30296.60109744,0.00011199,2]
[331084313,1720070577056,76448.2,0.00011199,2]
[331084314,1720070579535,641.77372059,0.00011199,2]
[331084317,1720070667317,30296.60109744,0.00011199,2]
[331084318,1720070673063,563.87144393,0.00011199,2]
[331084320,1720070799321,30296.60109744,0.00011199,2]
[331084340,1720070931330,19377.33415019,0.00011199,2]
[331084345,1720071032472,-9700.3324,0.00013028,2]
[331084346,1720071032482,-1903.03082168,0.00013128,2]
[331084347,1720071032493,-300.0,0.00013471,2]
[331084348,1720071032502,-1052.67057692,0.00013473,2]
[331084349,1720071032511,-2009.20793335,0.00013574,2]
[331084350,1720071032520,-3072.15423039,0.00013574,2]
[331084351,1720071032529,-16085.90757461,0.00014899,2]
[331084352,1720071032538,-4764.8295,0.000149,2]
[331084353,1720071032548,-50000.0,0.00014999,2]
[331084354,1720071032557,-706.57395234,0.00014999,2]
[331084355,1720071032566,-150.9314,0.00015245,2]
[331084356,1720071032575,-537.29,0.00016947,2]
[331084357,1720071032584,-499.99,0.00017808,2]
[331084358,1720071032595,-772.04369185,0.00018759,2]
[331084359,1720071032604,-660.33561149,0.00018835,2]
[331084360,1720071032614,-168.42,0.0001884,2]
[331084361,1720071032625,-1191.06,0.00018844,2]
[331084362,1720071032634,-214.82,0.00018884,2]
[331084363,1720071032644,-197.50721345,0.00018999,2]
[331084364,1720071032654,-264.6200961,0.00019069,2]
[331084365,1720071032664,-405.21,0.00019071,2]
[331084366,1720071032673,-227.14852012,0.00019077,2]
[331084367,1720071032682,-537.29,0.00019211,2]
[331084368,1720071032692,-250.0,0.00019233,2]
[331084369,1720071032701,-250.0,0.00019327,2]
[331084370,1720071032710,-742.69,0.0001936,2]
[331084371,1720071032720,-173.33,0.0001982,2]
[331084372,1720071032729,-1500.0,0.0001994,5]
[331084373,1720071032739,-400.0,0.00019995,2]
[331084375,1720071032748,-500.0,0.0002,2]
[331084377,1720071032756,-501.9,0.0002,2]
[331084378,1720071032765,-167.7,0.0002,2]
[331084379,1720071032775,-405.21,0.00020025,2]
[331084380,1720071032793,-173.96,0.00020218,2]
[331084381,1720071032802,-2500.0,0.00020633,2]
[331084382,1720071032812,-405.21,0.00020978,2]
[331084383,1720071032821,-173.96,0.00021272,2]
[331084384,1720071033016,-1024.61720398,0.000213,4]
[331084385,1720071033025,-3387.42366831,0.0002139,2]
[331084386,1720071033035,-180.0,0.00021397,2]
[331084387,1720071033044,-307.49816374,0.00021399,2]
[331084388,1720071033054,-321.74942738,0.00021399,2]
[331084389,1720071033064,-307.49816373,0.00021406,2]
[331084390,1720071033073,-181.12385849,0.00021412,2]
[331084391,1720071033084,-469.92635915,0.00021412,2]
[331084392,1720071033097,-307.49816373,0.00021412,2]
[331084393,1720071033106,-187.75243948,0.00021412,2]
[331084394,1720071033115,-537.29,0.00021475,2]
[331084395,1720071033127,-171.52455341,0.0002148,2]
[331084396,1720071033137,-187.58418215,0.00021489,2]
[331084397,1720071033146,-263758.43459222,0.0002149,3]
[331084398,1720071033159,-442.84006089,0.0002149,3]
[331084399,1720071033172,-450.037073,0.0002149,3]
[331084400,1720071033190,-14758.376858,0.0002149,3]
[331084401,1720071033201,-494.28267779,0.0002149,3]
[331084402,1720071033212,-889.15149544,0.0002149,3]
[331084403,1720071033224,-12540.02130766,0.0002149,3]
[331084404,1720071033234,-273674.38771666,0.0002149,3]
[331084405,1720071033246,-6385.75602073,0.0002149,3]
[331084406,1720071033261,-15177.3434825,0.0002149,3]
[331084407,1720071033272,-18570.756,0.0002149,3]
[331084408,1720071033283,-10294.19266211,0.0002149,3]
[331084409,1720071033293,-500.0,0.00021499,2]
[331084410,1720071033303,-500.0,0.00021499,2]
[331084411,1720071033312,-500.0,0.00021499,2]
[331084412,1720071033322,-594.12284033,0.00021499,2]
[331084413,1720071033331,-442.88322818,0.00021499,2]
[331084414,1720071033341,-150.0,0.00021499,2]
[331084415,1720071033351,-56.22218938,0.000215,5]
[331084416,1720071033362,-5892.7144032,0.000215,5]
[331084417,1720071033374,-15740.87024115,0.000215,5]
[331084418,1720071033385,-4265.1967325,0.000215,5]
[331084423,1720071038554,-314.78226418,0.00013574,2]
[331084424,1720071038564,-237.15398953,0.00018899,2]
[331084425,1720071038574,-1165.26374629,0.000215,5]